bitfinex/quotes_ETHUSD_20250905
["timestamp","ask_amount","ask_price","bid_price","bid_amount"]
[1757052641382,10.73322909,4344.8,4344.7,1e-08]
[1757052643299,11.19582909,4344.8,4344.7,1e-08]
[1757052643793,11.02160191,4344.8,4344.7,1e-08]
[1757052645196,10.55900191,4344.8,4344.7,1e-08]
[1757052649612,6.09365488,4344.7,4344.6,1e-08]
[1757052649774,6.39985488,4344.7,4344.6,1e-08]
[1757052649970,6.96355488,4344.7,4344.6,1e-08]
[1757052650171,3.09381382,4344.4,4344.2,0.004]
[1757052650367,9.98681382,4344.4,4344.2,0.004]
[1757052650572,10.08791382,4344.4,4344.2,0.004]
[1757052651390,10.55051382,4344.4,4344.2,0.004]
[1757052652505,10.08791382,4344.4,4344.2,0.004]
[1757052656222,9.98681382,4344.4,4344.3,0.7817]
[1757052656547,9.98681382,4344.4,4344.3,0.312]
[1757052656851,9.98681382,4344.4,4344.3,0.004]
[1757052658402,5.30181382,4344.4,4344.3,1.2394]
[1757052658600,9.19081382,4344.4,4344.3,1.2394]
[1757052660210,9.19081382,4344.4,4344.3,0.7817]
[1757052660647,9.19081382,4344.4,4344.3,1.2394]
[1757052662741,9.19081382,4344.4,4344.3,0.004]
[1757052663249,9.19081382,4344.4,4344.3,0.312]
[1757052663450,9.19081382,4344.4,4344.3,0.7817]
[1757052666647,9.19081382,4344.4,4344.3,1.2394]
[1757052671050,9.19081382,4344.4,4344.3,0.7817]
[1757052679467,12.74507028,4344.4,4344.3,0.7817]
[1757052680731,12.74507028,4344.4,4344.3,1.2674]
[1757052680732,9.17781382,4344.4,4344.3,1.2674]
[1757052681358,9.17781382,4344.4,4344.3,0.7817]
[1757052689969,5.30181382,4344.4,4344.3,1.2674]
[1757052690146,9.28721382,4344.4,4344.3,1.2674]
[1757052691892,6.28721382,4344.4,4344.3,1.2674]
[1757052694084,6.28621382,4344.4,4344.3,1.2674]
[1757052695467,6.28621382,4344.4,4344.3,0.7817]
[1757052696161,6.28621382,4344.4,4344.3,0.784]
[1757052697654,9.28621382,4344.4,4344.3,0.476]
[1757052697855,9.28621382,4344.4,4344.3,0.7741]
[1757052698767,9.28621382,4344.4,4344.3,0.004]
[1757052699173,9.28621382,4344.4,4344.3,1.215]
[1757052699587,9.28221382,4344.4,4344.3,1.215]
[1757052703497,9.28221382,4344.4,4344.3,0.004]
[1757052703990,9.28221382,4344.4,4344.3,0.4393]
[1757052704198,9.28221382,4344.4,4344.3,0.7282]
[1757052706871,9.28221382,4344.4,4344.3,1.215]
[1757052708772,5.41621382,4344.4,4344.3,1.215]
[1757052717905,5.41621382,4344.4,4344.3,0.7282]
[1757052719817,5.41621382,4344.4,4344.3,1.215]
[1757052719818,3.1144,4344.4,4344.3,1.215]
[1757052720008,0.692202,4344.5,4344.3,1.215]
[1757052720009,0.692202,4344.5,4344.3,1.4517]
[1757052720312,0.692202,4344.5,4344.4,0.9221]
[1757052720824,3.001,4344.6,4344.4,0.9221]
[1757052720825,0.001,4344.6,4344.4,1.211]
[1757052721104,0.001,4344.6,4344.5,1.18207]
[1757052721502,0.001,4344.6,4344.5,1.47097]
[1757052723420,0.001,4344.6,4344.5,3.77273084]
[1757052726096,0.001,4344.6,4344.5,1.47097]
[1757052729318,0.001,4344.6,4344.5,3.77273084]
[1757052734436,0.001,4344.6,4344.5,3.79574844]
[1757052734625,0.001,4344.6,4344.5,3.77273084]
[1757052736630,0.001,4344.6,4344.5,1.47097]
[1757052736828,0.001,4344.6,4344.5,5.32997]
[1757052738404,0.001,4344.6,4344.5,7.63173084]
[1757052738807,0.001,4344.6,4344.5,5.32997]
[1757052739905,0.001,4344.6,4344.5,4.84317]
[1757052741337,0.001,4344.6,4344.5,4.84717]
[1757052746338,0.5504,4344.6,4344.5,0.1184]
[1757052746508,2.85210786,4344.6,4344.5,0.004]
[1757052746706,3.85041404,4344.6,4344.5,0.004]
[1757052747731,3.54421404,4344.6,4344.5,0.004]
[1757052748240,2.99481404,4344.6,4344.5,0.004]
[1757052748412,3.73801404,4344.6,4344.5,0.004]
[1757052748609,3.28761404,4344.6,4344.5,0.004]
[1757052749410,3.73801404,4344.6,4344.5,0.004]
[1757052749606,0.69310618,4344.6,4344.5,0.4486]
[1757052749939,0.69310618,4344.6,4344.5,0.004]
[1757052750150,3.09381404,4344.6,4344.5,0.004]
[1757052759840,0.79210618,4344.6,4344.5,0.004]
[1757052760041,0.69310618,4344.6,4344.5,0.004]
[1757052760678,0.69310618,4344.6,4344.5,0.7349]
[1757052760877,0.69310618,4344.6,4344.5,0.4327]
[1757052761042,0.69310618,4344.6,4344.5,0.004]
[1757052761241,0.69310618,4344.6,4344.5,0.78]
[1757052761442,0.69310618,4344.6,4344.5,1.3231]
[1757052762054,0.69310618,4344.6,4344.5,0.8493]
[1757052762255,0.69310618,4344.6,4344.5,0.5471]
[1757052762457,0.69310618,4344.6,4344.5,0.1184]
[1757052762675,0.69310618,4344.6,4344.5,0.8493]
[1757052765867,3.09381404,4344.6,4344.5,0.1184]
[1757052766095,6.58201404,4344.6,4344.5,0.004]
[1757052766278,6.88821404,4344.6,4344.5,0.004]
[1757052766673,10.74621404,4344.6,4344.5,0.004]
[1757052770294,11.53821404,4344.6,4344.5,0.004]
[1757052770598,12.13654185,4344.6,4344.5,0.004]
[1757052771463,11.53821404,4344.6,4344.5,0.004]
[1757052779090,11.23201404,4344.6,4344.5,0.004]
[1757052784422,11.23201404,4344.6,4344.5,0.3062]
[1757052784423,10.64481404,4344.6,4344.5,0.3062]
[1757052784607,10.64481404,4344.6,4344.5,0.7349]
[1757052784809,10.64481404,4344.6,4344.5,0.3062]
[1757052785115,10.64481404,4344.6,4344.5,0.7349]
[1757052787591,10.64481404,4344.6,4344.5,0.004]
[1757052789926,10.74381404,4344.6,4344.5,0.004]
[1757052790230,11.19601404,4344.6,4344.5,0.004]
[1757052790901,10.74381404,4344.6,4344.5,0.004]
[1757052793226,10.64481404,4344.6,4344.5,0.004]
[1757052794522,11.19811404,4344.6,4344.5,0.004]
[1757052798506,2.3019198,4344.2,4344.1,1e-08]
[1757052798812,14.08356394,4344.2,4344.1,1e-08]
[1757052799020,14.63886394,4344.2,4344.1,1e-08]
[1757052799224,6.09397279,4344.1,4343.5,0.4398]
[1757052799425,11.64902578,4344.0,4343.5,0.4398]
[1757052799612,11.75212578,4344.0,4343.5,0.4398]
[1757052799816,11.84444047,4344.0,4343.5,0.4398]
[1757052800611,12.29664047,4344.0,4343.5,0.4398]
[1757052800811,12.29664047,4344.0,4343.9,1e-08]
[1757052801537,15.85257977,4344.0,4343.9,1e-08]
[1757052803021,15.29727977,4344.0,4343.9,1e-08]
[1757052803435,6.25134047,4344.0,4343.9,1.23200001]
[1757052803746,9.25134047,4344.0,4343.9,1.23200001]
[1757052807156,12.80727977,4344.0,4343.9,0.73350001]
[1757052810061,9.25134047,4344.0,4343.9,0.73350001]
[1757052811655,9.25134047,4344.0,4343.9,1.23200001]
[1757052816766,9.25134047,4344.0,4343.9,0.73350001]
[1757052819172,9.25134047,4344.0,4343.9,1.19450001]
[1757052819971,5.39434047,4344.0,4343.9,1.19450001]
[1757052820173,9.25134047,4344.0,4343.9,1.19450001]
[1757052821572,9.25134047,4344.0,4343.9,1e-08]
[1757052821873,9.56394047,4344.0,4343.9,1e-08]
[1757052822283,9.25134047,4344.0,4343.9,1e-08]
[1757052822943,9.56394047,4344.0,4343.9,1e-08]
[1757052824362,9.86659961,4344.0,4343.9,1e-08]
[1757052824676,10.03574047,4344.0,4343.9,1e-08]
[1757052826160,10.03674047,4344.0,4343.9,1e-08]
[1757052826558,10.82874047,4344.0,4343.9,1e-08]
[1757052826877,12.52574047,4344.0,4343.9,1e-08]
[1757052827088,12.62054047,4344.0,4343.9,1e-08]
[1757052827857,6.20847877,4343.9,4343.8,1e-08]
[1757052828062,9.85921807,4343.9,4343.8,1e-08]
[1757052828381,10.54881807,4343.9,4343.8,1e-08]
[1757052830450,6.09418477,4343.7,4343.6,1e-08]
[1757052830652,9.95018477,4343.7,4343.6,1e-08]
[1757052830889,10.73238477,4343.7,4343.6,1e-08]
[1757052833655,10.26058477,4343.7,4343.6,1e-08]
[1757052839262,6.09418477,4343.7,4343.6,0.28560001]
[1757052839463,6.09418477,4343.7,4343.6,0.75310001]
[1757052839464,9.15818477,4343.7,4343.6,0.75310001]
[1757052840570,5.30218477,4343.7,4343.6,0.75310001]
[1757052840772,9.15818477,4343.7,4343.6,0.75310001]
[1757052842415,9.15818477,4343.7,4343.6,1.21410001]
[1757052842576,12.71412407,4343.7,4343.6,1.21410001]
[1757052843081,12.71412407,4343.7,4343.6,0.75310001]
[1757052843408,12.71412407,4343.7,4343.6,1e-08]
[1757052843609,12.81312407,4343.7,4343.6,1e-08]
[1757052843971,8.85812407,4343.7,4343.6,1e-08]
[1757052844206,12.71412407,4343.7,4343.6,1e-08]
[1757052844505,12.71412407,4343.7,4343.6,0.75310001]
[1757052845873,12.71412407,4343.7,4343.6,1.21410001]
[1757052846078,12.71412407,4343.7,4343.6,0.75310001]
[1757052846702,6.15718477,4343.7,4343.6,1.21410001]
[1757052847204,9.15718477,4343.7,4343.6,1.21410001]
[1757052848504,9.46978477,4343.7,4343.6,1e-08]
[1757052848707,9.15718477,4343.7,4343.6,1e-08]
[1757052849091,9.15718477,4343.7,4343.6,0.76200001]
[1757052849911,9.15718477,4343.7,4343.6,1.22470001]
[1757052854419,9.15718477,4343.7,4343.6,1e-08]
[1757052854711,9.15718477,4343.7,4343.6,0.76200001]
[1757052858417,9.15718477,4343.7,4343.6,1e-08]
[1757052859114,9.25618477,4343.7,4343.6,1e-08]
[1757052859320,9.15718477,4343.7,4343.6,1e-08]
[1757052859983,9.15718477,4343.7,4343.6,0.46900001]
[1757052860209,9.15718477,4343.7,4343.6,1e-08]
[1757052860616,9.15818477,4343.7,4343.6,1e-08]
[1757052863822,9.15818477,4343.7,4343.6,0.46900001]
[1757052865713,9.15818477,4343.7,4343.6,1e-08]
[1757052866121,9.15818477,4343.7,4343.6,0.46900001]
[1757052866421,9.15818477,4343.7,4343.6,0.76200001]
[1757052876703,5.30318477,4343.7,4343.6,0.76200001]
[1757052876905,5.30318477,4343.7,4343.6,1.22470001]
[1757052877107,9.15618477,4343.7,4343.6,1.22470001]
[1757052877721,5.30318477,4343.7,4343.6,1.22470001]
[1757052878034,9.15618477,4343.7,4343.6,1.22470001]
[1757052879229,5.30318477,4343.7,4343.6,1.22470001]
[1757052879530,9.15618477,4343.7,4343.6,1.22470001]
[1757052880515,5.30318477,4343.7,4343.6,1.22470001]
[1757052880814,9.15618477,4343.7,4343.6,1.22470001]
[1757052882545,9.15618477,4343.7,4343.6,0.29300001]
[1757052882840,9.15618477,4343.7,4343.6,0.75460001]
[1757052884747,9.15618477,4343.7,4343.6,1.21200001]
[1757052887419,9.15618477,4343.7,4343.6,0.75460001]
[1757052889951,9.15618477,4343.7,4343.6,1.21200001]
[1757052892351,9.15618477,4343.7,4343.6,0.75460001]
[1757052892852,9.15618477,4343.7,4343.6,1e-08]
[1757052893648,9.15618477,4343.7,4343.6,0.29690001]
[1757052893856,9.15618477,4343.7,4343.6,0.75850001]
[1757052894547,9.15618477,4343.7,4343.6,1.21590001]
[1757052895153,5.30318477,4343.7,4343.6,1.21590001]
[1757052895349,0.001,4343.7,4343.6,1.21590001]
[1757052895552,0.001,4343.7,4343.6,1.33789001]
[1757052903551,0.001,4343.7,4343.6,3.64012778]
[1757052912448,0.001,4343.7,4343.6,5.96315015]
[1757052912644,0.001,4343.7,4343.6,5.94012778]
[1757052915855,0.001,4343.7,4343.6,6.03239583]
[1757052920613,0.001,4343.7,4343.6,9.88039583]
[1757052921015,0.001,4343.7,4343.6,7.79504936]
[1757052922117,0.001,4343.7,4343.6,7.79504581]
[1757052923590,0.001,4343.7,4343.6,11.3474288]
[1757052924411,0.001,4343.7,4343.6,12.2538288]
[1757052924615,0.001,4343.7,4343.6,11.70144581]
[1757052930534,0.001,4344.0,4343.9,3.09407877]
[1757052930744,0.001,4344.5,4344.1,0.792]
[1757052930917,0.001,4344.5,4344.4,6.96259681]
[1757052931118,0.001,4344.5,4344.4,15.83464679]
[1757052931466,0.001,4344.5,4344.4,16.85097995]
[1757052931614,1e-08,4344.9,4344.8,6.6459849]
[1757052931929,1e-08,4344.9,4344.8,12.07431545]
[1757052932133,1e-08,4344.9,4344.8,13.42921545]
[1757052933649,1e-08,4344.9,4344.8,13.42887766]
[1757052934627,1e-08,4344.9,4344.8,13.42787766]
[1757052938355,1e-08,4344.9,4344.8,13.21356547]
[1757052938574,1e-08,4344.9,4344.8,13.42750426]
[1757052939054,1e-08,4344.9,4344.8,3.99662127]
[1757052939254,0.09900001,4344.9,4344.8,13.19923498]
[1757052939437,0.09900001,4344.9,4344.8,13.99123498]
[1757052939635,1e-08,4344.9,4344.8,13.99123498]
[1757052940251,1e-08,4344.9,4344.8,14.46203498]
[1757052942181,1e-08,4344.9,4344.8,17.06493498]
[1757052942377,1e-08,4344.9,4344.8,19.05753192]
[1757052942877,1e-08,4344.9,4344.8,6.92253764]
[1757052942878,0.28690001,4344.9,4344.8,6.92253764]
[1757052943049,0.77520001,4344.9,4344.8,10.76753764]
[1757052943375,0.77520001,4344.9,4344.8,10.55359885]
[1757052945670,0.28690001,4344.9,4344.8,10.55359885]
[1757052946479,1e-08,4344.9,4344.8,10.55359885]
[1757052947162,0.28520001,4344.9,4344.8,10.55359885]
[1757052947482,0.89530001,4344.9,4344.8,0.1144]
[1757052947648,0.89530001,4344.9,4344.8,3.9594]
[1757052949546,0.89530001,4344.9,4344.8,6.26100191]
[1757052950176,0.89530001,4344.9,4344.8,3.9594]
[1757052954455,0.89530001,4344.9,4344.8,6.26100191]
[1757052954657,0.77350001,4344.9,4344.8,6.26100191]
[1757052955061,0.28520001,4344.9,4344.8,6.26100191]
[1757052956287,0.28520001,4344.9,4344.8,3.9594]
[1757052956488,0.77350001,4344.9,4344.8,3.9594]
[1757052957368,0.89530001,4344.9,4344.8,3.9594]
[1757052958498,0.77350001,4344.9,4344.8,3.9594]
[1757052959196,0.77350001,4344.9,4344.8,0.1144]
[1757052959406,0.89530001,4344.9,4344.8,3.9584]
[1757052960111,0.77350001,4344.9,4344.8,3.9584]
[1757052961807,1e-08,4344.9,4344.8,7.03370191]
[1757052961995,1e-08,4344.9,4344.8,8.0963104]
[1757052962309,1e-08,4344.9,4344.8,8.5634104]
[1757052963509,1e-08,4344.9,4344.8,12.11579339]
[1757052964585,1e-08,4344.9,4344.8,12.90779339]
[1757052974823,1e-08,4344.9,4344.8,15.20779339]
[1757052983523,1e-08,4344.9,4344.8,11.6554104]
[1757052986217,1e-08,4344.9,4344.8,11.1883104]
[1757052987726,0.09900001,4344.9,4344.8,10.4126104]
[1757052988628,1e-08,4344.9,4344.8,10.8681104]
[1757052989421,1e-08,4344.9,4344.8,10.4126104]
[1757052989730,1e-08,4344.9,4344.8,10.8681104]
[1757052989929,1e-08,4344.9,4344.8,11.1566104]
[1757052991157,1e-08,4344.9,4344.8,11.15030567]
[1757052996513,1e-08,4344.9,4344.8,11.61040567]
[1757052997515,1e-08,4344.9,4344.8,14.61040567]
[1757053000633,1e-08,4344.9,4344.8,14.15030567]
[1757053001948,1e-08,4344.9,4344.8,13.40630567]
[1757053002316,1e-08,4344.9,4344.8,14.16620567]
[1757053006343,1e-08,4344.9,4344.8,9.56430567]
[1757053006515,0.90210001,4344.9,4344.8,2.4184]
[1757053006722,0.90210001,4344.9,4344.8,3.9584]
[1757053006945,0.90210001,4344.9,4344.8,3.84]
[1757053007120,0.90210001,4344.9,4344.8,3.9544]
[1757053008251,3.20364895,4344.9,4344.8,3.9544]
[1757053008438,2.30166516,4344.7,4344.5,1.695]
[1757053008770,3.20364895,4344.9,4344.4,0.1144]
[1757053008771,2.30176084,4344.5,4344.4,0.1144]
[1757053009056,2.30176084,4344.5,4344.4,3.9544]
[1757053009256,3.20386084,4344.5,4344.4,3.9544]
[1757053009457,2.30181382,4344.4,4344.3,3.844]
[1757053009746,0.9022,4344.4,4344.3,3.844]
[1757053011884,3.20401382,4344.4,4344.3,3.844]
[1757053012487,0.9022,4344.4,4344.3,3.844]
[1757053016986,0.1051,4344.4,4344.3,3.9584]
[1757053017154,1e-08,4344.9,4344.3,3.9584]
[1757053017155,1e-08,4344.9,4344.3,4.64434]
[1757053017357,1e-08,4344.9,4344.4,0.4698]
[1757053017692,1e-08,4344.9,4344.8,0.1144]
[1757053017895,1e-08,4344.9,4344.8,3.9554]
[1757053018095,0.09900001,4344.9,4344.8,3.9554]
[1757053019859,0.09900001,4344.9,4344.8,6.25700191]
[1757053020083,0.09900001,4344.9,4344.8,3.9554]
[1757053022695,1e-08,4344.9,4344.8,3.9554]
[1757053022897,1e-08,4344.9,4344.8,6.25700191]
[1757053023688,0.29370001,4344.9,4344.8,3.9554]
[1757053024786,0.79060001,4344.9,4344.8,0.1144]
[1757053025014,0.79060001,4344.9,4344.3,0.004]
[1757053025015,3.90410001,4344.9,4344.3,0.004]
[1757053025185,1.01850001,4344.9,4344.3,0.004]
[1757053025384,2.30181382,4344.4,4344.3,0.004]
[1757053025888,6.20591382,4344.4,4344.3,0.004]
[1757053027082,11.32060251,4344.4,4344.3,0.004]
[1757053027479,15.16060251,4344.4,4344.3,0.004]
[1757053029711,11.32060251,4344.4,4344.3,0.004]
[1757053029913,15.16160251,4344.4,4344.3,0.004]
[1757053030308,10.04691382,4344.4,4344.3,0.004]
[1757053032219,9.93161382,4344.4,4344.3,0.004]
[1757053032792,6.43471382,4344.4,4344.3,0.004]
[1757053032999,2.30181382,4344.4,4344.3,0.004]
[1757053033198,9.14281382,4344.4,4344.3,0.004]
[1757053033402,9.43291382,4344.4,4344.3,0.004]
[1757053033601,6.05811382,4344.4,4344.3,0.004]
[1757053034116,5.59191382,4344.4,4344.3,0.004]
[1757053034730,6.17511382,4344.4,4344.3,0.004]
[1757053035545,6.05811382,4344.4,4344.3,0.004]
[1757053037138,6.17511382,4344.4,4344.3,0.004]
[1757053037945,6.05811382,4344.4,4344.3,0.004]
[1757053040431,11.59246165,4344.4,4344.3,0.004]
[1757053040656,11.59246165,4344.4,4344.3,1e-08]
[1757053040657,11.58541183,4344.4,4344.3,1e-08]
[1757053040823,2.3019198,4344.2,4343.9,0.004]
[1757053041019,5.30202578,4344.0,4343.9,0.004]
[1757053041237,5.59042578,4344.0,4343.9,0.004]
[1757053041556,6.26763046,4344.0,4343.9,0.004]
[1757053042229,8.63793046,4344.0,4343.9,0.004]
[1757053042431,8.75663046,4344.0,4343.9,0.004]
[1757053045523,12.31226652,4344.0,4343.9,0.004]
[1757053046545,12.19356652,4344.0,4343.9,0.004]
[1757053047125,16.03456652,4344.0,4343.9,0.004]
[1757053047950,16.15326652,4344.0,4343.9,0.004]
[1757053048558,15.27996652,4344.0,4343.9,0.004]
[1757053048762,15.56666652,4344.0,4343.9,0.004]
[1757053053951,16.03286652,4344.0,4343.9,0.004]
[1757053054360,15.56666652,4344.0,4343.9,0.004]
[1757053055471,16.03286652,4344.0,4343.9,0.004]
[1757053055871,12.19186652,4344.0,4343.9,0.004]
[1757053056063,16.03286652,4344.0,4343.9,0.004]
[1757053059375,6.20847877,4343.9,4343.8,0.029]
[1757053059548,6.66997877,4343.9,4343.8,1e-08]
[1757053059754,7.67534723,4343.9,4343.8,1e-08]
[1757053060271,7.37973791,4343.9,4343.8,1e-08]
[1757053061771,7.25763791,4343.9,4343.8,1e-08]
[1757053062186,6.95497877,4343.9,4343.8,1e-08]
[1757053063376,6.49347877,4343.9,4343.8,1e-08]
[1757053063578,6.20847877,4343.9,4343.8,0.30450001]
[1757053063778,10.04947877,4343.9,4343.8,1.22270001]
[1757053064166,6.09407877,4343.9,4343.8,0.74720001]
[1757053064344,9.93507877,4343.9,4343.8,1.22270001]
[1757053065385,5.30207877,4343.9,4343.8,1.22270001]
[1757053065583,9.14307877,4343.9,4343.8,1.22270001]
[1757053066388,9.14307877,4343.9,4343.8,0.74720001]
[1757053072390,10.81975514,4343.9,4343.8,1e-08]
[1757053072602,10.03407877,4343.9,4343.8,1e-08]
[1757053072764,9.93507877,4343.9,4343.8,0.30450001]
[1757053073087,9.93507877,4343.9,4343.8,0.74720001]
[1757053073291,9.93507877,4343.9,4343.8,1e-08]
[1757053076396,9.93507877,4343.9,4343.8,1e-08]
[1757053077666,5.30207877,4343.9,4343.8,0.74720001]
[1757053077873,9.14307877,4343.9,4343.8,1.22270001]
[1757053079112,9.14307877,4343.9,4343.8,0.74720001]
[1757053079888,9.14407877,4343.9,4343.8,1e-08]
[1757053080270,9.24307877,4343.9,4343.8,1e-08]
[1757053080472,10.03507877,4343.9,4343.8,1e-08]
[1757053080700,6.20853177,4343.8,4343.6,1e-08]
[1757053081005,9.14318477,4343.7,4343.6,0.47550001]
[1757053081503,9.14318477,4343.7,4343.6,1.22270001]
[1757053081700,9.14318477,4343.7,4343.6,0.74720001]
[1757053082474,13.01232083,4343.7,4343.6,1e-08]
[1757053083101,14.89265634,4343.7,4343.6,1e-08]
[1757053083795,14.43115634,4343.7,4343.6,1e-08]
[1757053084975,10.56202028,4343.7,4343.6,1e-08]
[1757053085181,9.93518477,4343.7,4343.6,0.44270001]
[1757053085511,9.93518477,4343.7,4343.6,1e-08]
[1757053085816,10.24868477,4343.7,4343.6,1e-08]
[1757053087830,10.71018477,4343.7,4343.6,1e-08]
[1757053088027,6.09423777,4343.6,4343.5,0.004]
[1757053088225,9.64987383,4343.6,4343.5,0.004]
[1757053088515,9.96117383,4343.6,4343.5,0.004]
[1757053088715,10.05349555,4343.6,4343.5,0.004]
[1757053089530,10.52309555,4343.6,4343.5,1e-08]
[1757053089708,10.84727192,4343.6,4343.5,1e-08]
[1757053089917,11.14993106,4343.6,4343.5,1e-08]
[1757053093920,11.14993106,4343.6,4343.4,0.004]
[1757053093921,2.30229077,4343.5,4343.4,0.004]
[1757053094115,9.93529077,4343.5,4343.4,0.004]
[1757053094296,10.24439077,4343.5,4343.4,0.004]
[1757053094498,10.45112165,4343.5,4343.4,0.004]
[1757053096626,6.09460885,4342.9,4342.8,1e-08]
[1757053096936,12.25944436,4342.9,4342.8,1e-08]
[1757053097106,13.03604436,4342.9,4342.8,1e-08]
[1757053097707,12.56644436,4342.9,4342.8,1e-08]
[1757053098607,13.03604436,4342.9,4342.8,1e-08]
[1757053099230,13.13634436,4342.9,4342.8,1e-08]
[1757053099806,13.03604436,4342.9,4342.8,1e-08]
[1757053100450,12.56644436,4342.9,4342.8,1e-08]
[1757053100606,8.41844436,4342.9,4342.8,0.29440001]
[1757053100937,3.09476792,4342.6,4342.5,0.004]
[1757053101116,13.49140398,4342.6,4342.5,0.4581]
[1757053101310,13.49140398,4342.6,4342.5,0.2984]
[1757053101516,14.4978087,4342.6,4342.5,0.004]
[1757053101700,14.4978087,4342.6,4342.5,1e-08]
[1757053101907,6.09498005,4342.2,4342.1,1e-08]
[1757053102129,13.49161611,4342.2,4342.1,1e-08]
[1757053102409,14.89985162,4342.2,4342.1,1e-08]
[1757053103713,14.59719248,4342.2,4342.1,1e-08]
[1757053104240,14.59719248,4342.2,4341.8,1e-08]
[1757053104409,9.65077523,4341.9,4341.8,1e-08]
[1757053104605,13.49177523,4341.9,4341.8,1e-08]
[1757053104810,13.49177523,4341.9,4341.8,0.74850001]
[1757053105011,9.65077523,4341.9,4341.8,1.18280001]
[1757053105239,13.49177523,4341.9,4341.8,1.18280001]
[1757053105427,9.93613917,4341.9,4341.8,0.74850001]
[1757053105631,10.24993917,4341.9,4341.8,1e-08]
[1757053105840,6.09513917,4341.9,4341.8,0.74850001]
[1757053106039,9.93613917,4341.9,4341.8,1.18280001]
[1757053107420,9.93713917,4341.9,4341.8,1.18280001]
[1757053107618,6.14513917,4341.9,4341.8,1.18280001]
[1757053108039,5.30313917,4341.9,4341.8,1.18280001]
[1757053108222,9.14513917,4341.9,4341.8,1.18280001]
[1757053109517,0.69260472,4342.0,4341.8,1.30108001]
[1757053109712,3.842,4341.9,4341.8,0.41268001]
[1757053110034,3.842,4341.9,4341.8,1.30108001]
[1757053112828,3.842,4341.9,4341.8,1.18280001]
[1757053113545,4.53460472,4342.0,4341.8,1.18280001]
[1757053113845,4.53460472,4342.0,4341.9,0.8884]
[1757053114034,4.53460472,4342.0,4341.9,1.1828]
[1757053114924,6.83769085,4342.0,4341.9,1.1828]
[1757053116337,4.53460472,4342.0,4341.9,1.1828]
[1757053118660,6.83769085,4342.0,4341.9,1.1828]
[1757053120759,4.53460472,4342.0,4341.9,1.1828]
[1757053121464,6.83769085,4342.0,4341.9,1.1828]
[1757053122662,4.53460472,4342.0,4341.9,1.1828]
[1757053126637,6.83769085,4342.0,4341.9,1.1828]
[1757053127531,0.69260472,4342.0,4341.9,1.1828]
[1757053127732,3.0,4342.7,4341.9,0.86678]
[1757053127937,3.0,4342.5,4341.8,1e-08]
[1757053128169,2.30303309,4342.1,4341.8,1e-08]
[1757053128370,3.9554,4342.2,4341.8,1e-08]
[1757053128666,5.30304574,4342.1,4341.8,1e-08]
[1757053129055,2.30308981,4342.0,4341.8,1e-08]
[1757053129255,2.30308981,4342.0,4341.8,0.47980001]
[1757053129460,2.30308981,4342.0,4341.9,0.3086]
[1757053129660,2.78288982,4342.0,4341.9,0.3086]
[1757053130170,2.78288982,4342.0,4341.9,1.2568]
[1757053130171,4.32080001,4342.0,4341.9,1.2568]
[1757053134002,4.32080001,4342.0,4341.9,0.7884]
[1757053135097,6.62388614,4342.0,4341.9,0.7884]
[1757053135604,6.62388614,4342.0,4341.8,0.00400001]
[1757053135605,2.30313917,4341.9,4341.8,0.00400001]
[1757053136200,5.59443917,4341.9,4341.8,0.00400001]
[1757053136603,5.30313917,4341.9,4341.8,0.00400001]
[1757053137002,5.59443917,4341.9,4341.8,0.00400001]
[1757053137175,6.05793917,4341.9,4341.8,0.00400001]
[1757053137378,2.30346402,4341.3,4340.5,0.4798]
[1757053137698,2.41801667,4341.0,4340.3,0.1144]
[1757053137899,9.43596974,4340.9,4340.3,0.1144]
[1757053138100,9.89946974,4340.9,4340.3,0.1144]
[1757053139177,9.43596974,4340.9,4340.3,0.1144]
[1757053139477,9.89946974,4340.9,4340.3,1.0626]
[1757053139893,9.89946974,4340.9,4340.3,0.5942]
[1757053142001,9.43596974,4340.9,4340.4,0.4684]
[1757053142805,9.89946974,4340.9,4340.3,0.5942]
[1757053143708,5.30366974,4340.9,4340.8,1.2818]
[1757053143911,0.69272625,4341.0,4340.8,1.52438]
[1757053144090,0.69272625,4341.0,4340.9,0.9482]
[1757053144490,2.30325713,4341.7,4340.9,1.2568]
[1757053144677,2.30332348,4341.6,4341.0,0.9482]
[1757053144873,0.69252158,4341.7,4341.5,0.1144]
[1757053145101,2.30329948,4341.6,4341.5,0.1144]
[1757053145313,2.30329948,4341.6,4341.5,0.423]
[1757053145714,2.30329948,4341.6,4341.5,0.1144]
[1757053146022,2.30329948,4341.6,4341.5,0.423]
[1757053146723,2.30329948,4341.6,4341.5,1.3712]
[1757053147538,2.30329948,4341.6,4341.5,0.1144]
[1757053148824,2.30329948,4341.6,4341.5,0.423]
[1757053149628,2.78309948,4341.6,4341.5,0.423]
[1757053149833,2.30345748,4341.3,4341.2,0.4684]
[1757053150010,2.30345748,4341.3,4341.2,0.1144]
[1757053150212,2.30345748,4341.3,4341.2,0.418]
[1757053150418,2.30366974,4340.9,4340.8,0.025]
[1757053150818,2.41806974,4340.9,4340.8,0.025]
[1757053151020,2.41806974,4340.9,4340.8,0.8153]
[1757053151735,2.41806974,4340.9,4340.8,0.3286]
[1757053152115,2.30366974,4340.9,4340.8,0.8153]
[1757053154238,2.30366974,4340.9,4340.8,0.8193]
[1757053154441,2.30366974,4340.9,4340.8,0.029]
[1757053154639,3.08156974,4340.9,4340.8,0.029]
[1757053155213,2.60756974,4340.9,4340.8,0.029]
[1757053155418,3.08156974,4340.9,4340.8,0.029]
[1757053156414,6.08156974,4340.9,4340.8,0.029]
[1757053157224,5.60756974,4340.9,4340.8,0.029]
[1757053157430,6.08156974,4340.9,4340.8,0.029]
[1757053158853,6.55626974,4340.9,4340.8,0.029]
[1757053159013,6.67066974,4340.9,4340.8,0.029]
[1757053159219,6.67066974,4340.9,4340.8,1e-08]
[1757053162462,7.46266974,4340.9,4340.8,1e-08]
[1757053166479,10.03996974,4340.9,4340.8,1e-08]
[1757053170856,10.51466974,4340.9,4340.8,1e-08]
[1757053171577,11.93350525,4340.9,4340.8,1e-08]
[1757053172379,3.09593512,4340.4,4340.3,1e-08]
[1757053172678,15.8233801,4340.4,4340.3,1e-08]